Workbook

Sheet Data
A1: Parcel | B1: Address | C1: City | D1: State | E1: Zip | F1: Owner Name | G1: Mkt2010 | H1: Mkt2011 | I1: Mkt2012 | J1: Year Built | K1: Base Area | L1: Land | M1: Allotment
A2: 2419080 | B2: 250 ALABAMA AVE | C2: Merritt Island | D2: Florida | E2: 32953 | F2: DE LEON, EDWARD A | G2: 127720 | H2: 108380 | I2: 105170 | J2: 1958 | K2: 1215 | L2: 0.18 | M2: Hampton
A3: 2419079 | B3: 260 ALABAMA AVE | C3: Merritt Island | D3: Florida | E3: 32953 | F3: WAGNER, JAMES W | G3: 116530 | H3: 99260 | I3: 95310 | J3: 1959 | K3: 1242 | L3: 0.18 | M3: Hampton
A4: 2419076 | B4: 290 ALABAMA AVE | C4: Merritt Island | D4: Florida | E4: 32953 | F4: LAKE, JERRY | G4: 129860 | H4: 111110 | I4: 106520 | K4: 1674 | L4: 0.18 | M4: Hampton
A5: 2419075 | B5: 300 ALABAMA AVE | C5: Merritt Island | D5: Florida | E5: 32953 | F5: WALKER, JOHN R | G5: 131550 | H5: 124350 | I5: 117550 | J5: 1959 | K5: 1138 | L5: 0.18 | M5: Hampton
A6: 2419074 | B6: 310 ALABAMA AVE | C6: Merritt Island | D6: Florida | E6: 32953 | F6: KURZWEIL, CHARLES J JR TRUSTEE | G6: 132860 | H6: 115950 | I6: 112090 | J6: 1959 | K6: 1621 | L6: 0.18 | M6: Hampton
A7: 2419071 | B7: 340 ALABAMA AVE | C7: Merritt Island | D7: Florida | E7: 32953 | F7: SMITH, DOROTHY A | G7: 119060 | H7: 116220 | I7: 111270 | J7: 1959 | K7: 1215 | L7: 0.18 | M7: Hampton
A8: 2419070 | B8: 350 ALABAMA AVE | C8: Merritt Island | D8: Florida | E8: 32953 | F8: GOVANTES, LUIS | G8: 145470 | H8: 121050 | I8: 111170 | K8: 1242 | L8: 0.18 | M8: Hampton
A9: 2419069 | B9: 360 ALABAMA AVE | C9: Merritt Island | D9: Florida | E9: 32953 | F9: MC KEE, JOHN C III | G9: 110010 | H9: 93260 | I9: 92440 | J9: 1959 | K9: 1138 | L9: 0.18 | M9: Hampton
A10: 2419068 | B10: 370 ALABAMA AVE | C10: Merritt Island | D10: Florida | E10: 32953 | F10: EMERSON, DOUGLAS K SR | G10: 150350 | H10: 132880 | I10: 127760 | J10: 1969 | K10: 1631 | L10: 0.21 | M10: Hampton
A11: 2418837 | B11: 380 ALABAMA AVE | C11: Merritt Island | D11: Florida | E11: 32953 | F11: EDELMAN, SIDNEY L | G11: 131430 | H11: 111620 | I11: 106360 | J11: 1961 | K11: 1538 | L11: 0.18 | M11: Hampton
A12: 2418838 | B12: 390 ALABAMA AVE | C12: Merritt Island | D12: Florida | E12: 32953 | F12: WILLIS, THOMAS F | G12: 135780 | H12: 116900 | I12: 109210 | J12: 1961 | K12: 1369 | L12: 0.17 | M12: Hampton
A13: 2418839 | B13: 400 ALABAMA AVE | C13: Merritt Island | D13: Florida | E13: 32953 | F13: KNIGHT, TOMMIE J TRUSTEE | G13: 128160 | H13: 106730 | I13: 102700 | J13: 1962 | K13: 1328 | L13: 0.17 | M13: Hampton
A14: 2418840 | B14: 410 ALABAMA AVE | C14: Merritt Island | D14: Florida | E14: 32953 | F14: DEMAREST, GEORGE S | G14: 116160 | H14: 98030 | I14: 94840 | J14: 1962 | K14: 1008 | L14: 0.17 | M14: Hampton
A15: 2418841 | B15: 420 ALABAMA AVE | C15: Merritt Island | D15: Florida | E15: 32953 | F15: SOWARDS, MARTIN | G15: 126660 | H15: 109020 | I15: 104550 | J15: 1961 | K15: 1008 | L15: 0.17 | M15: Hampton
A16: 2418842 | B16: 430 ALABAMA AVE | C16: Merritt Island | D16: Florida | E16: 32953 | F16: DALY, ROBERT V | G16: 142600 | H16: 119050 | I16: 112980 | J16: 1961 | K16: 1066 | L16: 0.17 | M16: Hampton
A17: 2418843 | B17: 440 ALABAMA AVE | C17: Merritt Island | D17: Florida | E17: 32953 | F17: LIGHTHALL, PAMELA D | G17: 121400 | H17: 103400 | I17: 99620 | J17: 1961 | K17: 1008 | L17: 0.17 | M17: Hampton
A18: 2418845 | B18: 460 ALABAMA AVE | C18: Merritt Island | D18: Florida | E18: 32953 | F18: CLARK, WAYNE H ESTATE | G18: 113930 | H18: 96450 | I18: 93380 | J18: 1962 | K18: 1008 | L18: 0.17 | M18: Hampton
A19: 2418846 | B19: 470 ALABAMA AVE | C19: Merritt Island | D19: Florida | E19: 32953 | F19: DOYLE, ROBERT W | G19: 115790 | H19: 95630 | I19: 92450 | J19: 1961 | K19: 820 | L19: 0.17 | M19: Hampton
A20: 2418847 | B20: 480 ALABAMA AVE | C20: Merritt Island | D20: Florida | E20: 32953 | F20: LANCOS, JOSEPH E | G20: 138380 | H20: 120540 | I20: 114710 | J20: 1962 | K20: 1050 | L20: 0.17 | M20: Hampton
A21: 2418848 | B21: 490 ALABAMA AVE | C21: Merritt Island | D21: Florida | E21: 32953 | F21: HAMMARSTEDT, URBAN B | G21: 117320 | H21: 99520 | I21: 95850 | J21: 1961 | K21: 1008 | L21: 0.17 | M21: Hampton
A22: 2418849 | B22: 500 ALABAMA AVE | C22: Merritt Island | D22: Florida | E22: 32953 | F22: GREEN, PAIGE R | G22: 140600 | H22: 118280 | I22: 112030 | J22: 1962 | K22: 1354 | L22: 0.17 | M22: Hampton
A23: 2418850 | B23: 510 ALABAMA AVE | C23: Merritt Island | D23: Florida | E23: 32953 | F23: PAWELA, FRANK N | G23: 123670 | H23: 103760 | I23: 98660 | J23: 1962 | K23: 1066 | L23: 0.17 | M23: Hampton
A24: 2432320 | B24: 1600 AMBERJACK CT | C24: Merritt Island | D24: Florida | E24: 32952 | F24: MAZZA, DOUGLAS T | G24: 180200 | H24: 147450 | I24: 145860 | K24: 1365 | L24: 0.19 | M24: SE
A25: 2432321 | B25: 1610 AMBERJACK CT | C25: Merritt Island | D25: Florida | E25: 32952 | F25: NATIONSTAR MORTGAGE LLC | G25: 194410 | H25: 170880 | I25: 167740 | J25: 1981 | K25: 1678 | L25: 0.18 | M25: SE
A26: 2432322 | B26: 1620 AMBERJACK CT | C26: Merritt Island | D26: Florida | E26: 32952 | F26: NAUS, FRANCIS W | G26: 203190 | H26: 166000 | I26: 161160 | K26: 1497 | L26: 0.19 | M26: SE
A27: 2432323 | B27: 1630 AMBERJACK CT | C27: Merritt Island | D27: Florida | E27: 32952 | F27: DENTON, GEORGIANE | G27: 181850 | H27: 157480 | I27: 155090 | J27: 1980 | K27: 1656 | L27: 0.19 | M27: SE
A28: 2432324 | B28: 1640 AMBERJACK CT | C28: Merritt Island | D28: Florida | E28: 32952 | F28: HECK, JUDY F | G28: 201570 | H28: 179920 | I28: 174230 | J28: 1981 | K28: 1633 | L28: 0.19 | M28: SE
A29: 2432325 | B29: 1650 AMBERJACK CT | C29: Merritt Island | D29: Florida | E29: 32952 | F29: JONES, DANIEL W | G29: 280750 | H29: 221270 | I29: 213920 | J29: 1981 | K29: 1679 | L29: 0.23 | M29: SE
A30: 2432327 | B30: 1655 AMBERJACK CT | C30: Merritt Island | D30: Florida | E30: 32952 | F30: SCHUPP, WILLIAM E | G30: 224570 | H30: 186020 | I30: 181540 | K30: 1988 | L30: 0.31 | M30: SE
A31: 2432326 | B31: 1660 AMBERJACK CT | C31: Merritt Island | D31: Florida | E31: 32952 | F31: PERTILE, BENJAMIN B | G31: 239450 | H31: 201680 | I31: 196430 | K31: 2278 | L31: 0.29 | M31: SE
A32: 2440149 | B32: 313 ANGELO LN | C32: COCOA BEACH | D32: Florida | E32: 32931 | F32: PIERCE, DUANE L JR | G32: 268570 | H32: 238640 | I32: 238470 | J32: 2005 | K32: 2196 | L32: 0.23 | M32: Venetian
A33: 2440147 | B33: 337 ANGELO LN | C33: COCOA BEACH | D33: Florida | E33: 32931 | F33: DAVENPORT, HAROLD L | G33: 207150 | H33: 179150 | I33: 173320 | J33: 1961 | K33: 1255 | L33: 0.23 | M33: Venetian
A34: 2440122 | B34: 350 ANGELO LN | C34: COCOA BEACH | D34: Florida | E34: 32931 | F34: MC CLINTOCK, WILLIEN N | G34: 222450 | H34: 191640 | I34: 187290 | J34: 1961 | K34: 1472 | L34: 0.23 | M34: Venetian
A35: 2440146 | B35: 351 ANGELO LN | C35: COCOA BEACH | D35: Florida | E35: 32931 | F35: KNIGHT, MICHAEL L | G35: 192460 | H35: 165900 | I35: 162210 | J35: 1961 | K35: 1314 | L35: 0.23 | M35: Venetian
A36: 2440124 | B36: 358 ANGELO LN | C36: COCOA BEACH | D36: Florida | E36: 32931 | F36: JANES, LORIMER B | G36: 242680 | H36: 212220 | I36: 207920 | J36: 1961 | K36: 1394 | L36: 0.23 | M36: Venetian
A37: 2440145 | B37: 363 ANGELO LN | C37: COCOA BEACH | D37: Florida | E37: 32931 | F37: HAUGHWOUT, DANA Q LIFE ESTATE | G37: 192910 | H37: 165600 | I37: 161950 | J37: 1961 | K37: 1215 | L37: 0.23 | M37: Venetian
A38: 2440125 | B38: 368 ANGELO LN | C38: COCOA BEACH | D38: Florida | E38: 32931 | F38: JANES, JOHN B | G38: 217640 | H38: 184090 | I38: 180210 | J38: 1960 | K38: 1196 | L38: 0.23 | M38: Venetian
A39: 2440126 | B39: 378 ANGELO LN | C39: COCOA BEACH | D39: Florida | E39: 32931 | F39: TOBIN, JON T | G39: 240150 | H39: 203400 | I39: 199180 | J39: 1960 | K39: 1122 | L39: 0.23 | M39: Venetian
A40: 2440143 | B40: 387 ANGELO LN | C40: COCOA BEACH | D40: Florida | E40: 32931 | F40: ENTRUST OF COLORADO INC FBO | G40: 188990 | H40: 161510 | I40: 158100 | J40: 1961 | K40: 1124 | L40: 0.23 | M40: Venetian
A41: 2440142 | B41: 399 ANGELO LN | C41: COCOA BEACH | D41: Florida | E41: 32931 | F41: KENNEDY, BRIAN A | G41: 212040 | H41: 181840 | I41: 171710 | J41: 1960 | K41: 1476 | L41: 0.23 | M41: Venetian
A42: 2440127 | B42: 400 ANGELO LN | C42: COCOA BEACH | D42: Florida | E42: 32931 | F42: PETIT, ALAN N | G42: 262160 | H42: 225830 | I42: 220620 | J42: 1959 | K42: 2085 | L42: 0.31 | M42: Venetian
A43: 2440128 | B43: 408 ANGELO LN | C43: COCOA BEACH | D43: Florida | E43: 32931 | F43: HUGHES, THOMAS | G43: 264540 | H43: 230780 | I43: 221440 | J43: 1959 | K43: 2321 | L43: 0.31 | M43: Venetian
A44: 2440141 | B44: 411 ANGELO LN | C44: COCOA BEACH | D44: Florida | E44: 32931 | F44: KUHN, JOHN E TRUSTEE | G44: 201280 | H44: 169880 | I44: 164820 | J44: 1961 | K44: 1304 | L44: 0.23 | M44: Venetian
A45: 2440129 | B45: 416 ANGELO LN | C45: COCOA BEACH | D45: Florida | E45: 32931 | F45: BELL, JOHN M | G45: 255700 | H45: 221430 | I45: 213340 | J45: 1959 | K45: 2010 | L45: 0.31 | M45: Venetian
A46: 2440140 | B46: 423 ANGELO LN | C46: COCOA BEACH | D46: Florida | E46: 32931 | F46: DENLINGER, ALICE A L | G46: 261560 | H46: 232870 | I46: 224270 | J46: 1960 | K46: 2036 | L46: 0.23 | M46: Venetian
A47: 2440130 | B47: 428 ANGELO LN | C47: COCOA BEACH | D47: Florida | E47: 32931 | F47: SHOWS, LE ANNA TRUSTEE | G47: 212850 | H47: 181300 | I47: 176960 | J47: 1959 | K47: 968 | L47: 0.31 | M47: Venetian
A48: 2440139 | B48: 435 ANGELO LN | C48: COCOA BEACH | D48: Florida | E48: 32931 | F48: CHANDLEE, KENNETH | G48: 211200 | H48: 181650 | I48: 174640 | J48: 1961 | K48: 1422 | L48: 0.23 | M48: Venetian
A49: 2440131 | B49: 440 ANGELO LN | C49: COCOA BEACH | D49: Florida | E49: 32931 | F49: GALANOPOULOS, ATHANASSIOS P | G49: 277810 | H49: 240500 | I49: 230780 | J49: 1959 | K49: 2262 | L49: 0.31 | M49: Venetian
A50: 2440138 | B50: 447 ANGELO LN | C50: COCOA BEACH | D50: Florida | E50: 32931 | F50: KULL, JOHN H | G50: 217760 | H50: 186610 | I50: 186040 | J50: 1962 | K50: 1561 | L50: 0.31 | M50: Venetian
A51: 2440132 | B51: 452 ANGELO LN | C51: COCOA BEACH | D51: Florida | E51: 32931 | F51: WENTWORTH, DAVID M | G51: 312600 | H51: 273240 | I51: 265570 | J51: 1961 | K51: 2450 | L51: 0.3 | M51: Venetian
A52: 2440137 | B52: 459 ANGELO LN | C52: COCOA BEACH | D52: Florida | E52: 32931 | F52: MOSES, JEFFREY | G52: 244060 | H52: 210970 | I52: 199410 | J52: 1961 | K52: 1509 | L52: 0.31 | M52: Venetian
A53: 2440133 | B53: 464 ANGELO LN | C53: COCOA BEACH | D53: Florida | E53: 32931 | F53: LIGHTNER, ROBERT W | G53: 290400 | H53: 256680 | I53: 256940 | J53: 1962 | K53: 1504 | L53: 0.34 | M53: Venetian
A54: 2440135 | B54: 469 ANGELO LN | C54: COCOA BEACH | D54: Florida | E54: 32931 | F54: BILDER, DANIEL A | G54: 294530 | H54: 258350 | I54: 250030 | J54: 1962 | K54: 2070 | L54: 0.29 | M54: Venetian
A55: 2440134 | B55: 479 ANGELO LN | C55: COCOA BEACH | D55: Florida | E55: 32931 | F55: DAVIS, PATRICIA F | G55: 327000 | H55: 288860 | I55: 286050 | J55: 1962 | K55: 2087 | L55: 0.34 | M55: Venetian
A56: 2432614 | B56: 1375 ANGLER ST | C56: Merritt Island | D56: Florida | E56: 32952 | F56: LINK, CONNIE S | G56: 161710 | H56: 138190 | I56: 136370 | K56: 1299 | L56: 0.22 | M56: SE
A57: 2432613 | B57: 1385 ANGLER ST | C57: Merritt Island | D57: Florida | E57: 32952 | F57: MADDEN, PAUL | G57: 178410 | H57: 153850 | I57: 149950 | K57: 1214 | L57: 0.18 | M57: SE
A58: 2432612 | B58: 1395 ANGLER ST | C58: Merritt Island | D58: Florida | E58: 32952 | F58: MICALIZZI, ANGELO FRANCIS | G58: 171200 | H58: 147980 | I58: 139200 | K58: 1320 | L58: 0.18 | M58: SE
A59: 2432573 | B59: 1405 ANGLER ST | C59: Merritt Island | D59: Florida | E59: 32952 | F59: HUEFNER, DENNIS E | G59: 161180 | H59: 139310 | I59: 136600 | K59: 1498 | L59: 0.18 | M59: SE
A60: 2432571 | B60: 1425 ANGLER ST | C60: Merritt Island | D60: Florida | E60: 32952 | F60: DIAZ, FAUSTO ENRIQUE JR | G60: 158820 | H60: 138340 | I60: 135640 | K60: 1498 | L60: 0.18 | M60: SE
A61: 2432570 | B61: 1435 ANGLER ST | C61: Merritt Island | D61: Florida | E61: 32952 | F61: WALKER, DARWIN E | G61: 162140 | H61: 141590 | I61: 138840 | J61: 1964 | K61: 1481 | L61: 0.18 | M61: SE
A62: 2432490 | B62: 1465 ANGLER ST | C62: Merritt Island | D62: Florida | E62: 32952 | F62: LARSEN, GEORGIA | G62: 163370 | H62: 136440 | I62: 134600 | K62: 1351 | L62: 0.18 | M62: SE
A63: 2418373 | B63: 105 ARTEMIS BLVD | C63: Merritt Island | D63: Florida | E63: 32953 | F63: SEAMAN, WILLIAM C | G63: 181660 | H63: 159950 | I63: 162900 | J63: 1973 | K63: 1536 | L63: 0.2 | M63: DS
A64: 2418386 | B64: 135 ARTEMIS BLVD | C64: Merritt Island | D64: Florida | E64: 32953 | F64: DAIGNAULT, JOHN V | G64: 192280 | H64: 168340 | I64: 170830 | J64: 1967 | K64: 2225 | L64: 0.21 | M64: DS
A65: 2418387 | B65: 145 ARTEMIS BLVD | C65: Merritt Island | D65: Florida | E65: 32953 | F65: REEF, RONNIE J | G65: 203950 | H65: 180680 | I65: 179860 | J65: 1967 | K65: 1582 | L65: 0.21 | M65: DS
A66: 2418318 | B66: 15 ARTEMIS BLVD | C66: Merritt Island | D66: Florida | E66: 32953 | F66: ABRAMS, JERRY MORTON | G66: 202980 | H66: 178380 | I66: 179490 | J66: 1968 | K66: 1991 | L66: 0.2 | M66: DS
A67: 2418388 | B67: 155 ARTEMIS BLVD | C67: Merritt Island | D67: Florida | E67: 32953 | F67: STONE, MICHAEL A | G67: 183530 | H67: 154630 | I67: 157930 | K67: 1504 | L67: 0.21 | M67: DS
A68: 2418389 | B68: 165 ARTEMIS BLVD | C68: Merritt Island | D68: Florida | E68: 32953 | F68: GRIMMNITZ, MARY P TRUSTEE | G68: 180470 | H68: 159220 | I68: 161810 | J68: 1967 | K68: 1660 | L68: 0.2 | M68: DS
A69: 2418390 | B69: 175 ARTEMIS BLVD | C69: Merritt Island | D69: Florida | E69: 32953 | F69: FINE, HENRY R III TRUSTEE | G69: 222140 | H69: 198150 | I69: 197580 | J69: 1968 | K69: 2503 | L69: 0.2 | M69: DS
A70: 2418391 | B70: 185 ARTEMIS BLVD | C70: Merritt Island | D70: Florida | E70: 32953 | F70: WEBER, THOMAS E | G70: 181820 | H70: 152880 | I70: 156770 | J70: 1968 | K70: 1504 | L70: 0.2 | M70: DS
A71: 2418392 | B71: 195 ARTEMIS BLVD | C71: Merritt Island | D71: Florida | E71: 32953 | F71: MAYER, ROBERT PAUL JR | G71: 192340 | H71: 164500 | I71: 167230 | K71: 1705 | L71: 0.2 | M71: DS
A72: 2418401 | B72: 205 ARTEMIS BLVD | C72: Merritt Island | D72: Florida | E72: 32953 | F72: BUTTES, GEORGE E | G72: 213520 | H72: 189480 | I72: 190790 | J72: 1973 | K72: 1717 | L72: 0.21 | M72: DS
A73: 2418398 | B73: 220 ARTEMIS BLVD | C73: Merritt Island | D73: Florida | E73: 32953 | F73: KATARSKI, DAVID C | G73: 189110 | H73: 188770 | I73: 189960 | J73: 1973 | K73: 1743 | L73: 0.21 | M73: DS
A74: 2418397 | B74: 230 ARTEMIS BLVD | C74: Merritt Island | D74: Florida | E74: 32953 | F74: SALLEE, GARY J | G74: 221340 | H74: 196960 | I74: 196990 | J74: 1972 | K74: 1717 | L74: 0.2 | M74: DS
A75: 2418319 | B75: 25 ARTEMIS BLVD | C75: Merritt Island | D75: Florida | E75: 32953 | F75: CRAIG, KATHRYN E TRUSTEE | G75: 186170 | H75: 159180 | I75: 162800 | J75: 1968 | K75: 2200 | L75: 0.2 | M75: DS
A76: 2418396 | B76: 250 ARTEMIS BLVD | C76: Merritt Island | D76: Florida | E76: 32953 | F76: CARTER, HERBERT L | G76: 195880 | H76: 173080 | I76: 174100 | J76: 1972 | K76: 1495 | L76: 0.2 | M76: DS
A77: 2418425 | B77: 255 ARTEMIS BLVD | C77: Merritt Island | D77: Florida | E77: 32953 | F77: CANNON, GEORGE T II | G77: 181710 | H77: 159810 | I77: 162570 | J77: 1972 | K77: 1544 | L77: 0.22 | M77: DS
A78: 2418395 | B78: 270 ARTEMIS BLVD | C78: Merritt Island | D78: Florida | E78: 32953 | F78: LOWNEY, P J JR | G78: 186110 | H78: 163720 | I78: 166180 | J78: 1972 | K78: 1717 | L78: 0.2 | M78: DS
A79: 2418394 | B79: 280 ARTEMIS BLVD | C79: Merritt Island | D79: Florida | E79: 32953 | F79: HAGEN, DORVIN D | G79: 216090 | H79: 192100 | I79: 192620 | J79: 1972 | K79: 1717 | L79: 0.2 | M79: DS
A80: 2418393 | B80: 300 ARTEMIS BLVD | C80: Merritt Island | D80: Florida | E80: 32953 | F80: FEDERAL NATIONAL MORTGAGE ASSOC | G80: 225880 | H80: 198060 | I80: 197070 | K80: 1764 | L80: 0.2 | M80: DS
A81: 2418455 | B81: 310 ARTEMIS BLVD | C81: Merritt Island | D81: Florida | E81: 32953 | F81: BLAND, KENNETH S | G81: 187950 | H81: 165550 | I81: 167060 | J81: 1974 | K81: 1791 | L81: 0.2 | M81: DS
A82: 2418456 | B82: 315 ARTEMIS BLVD | C82: Merritt Island | D82: Florida | E82: 32953 | F82: GUTHRIE, THOMAS F | G82: 200490 | H82: 178290 | I82: 198220 | J82: 1975 | K82: 1676 | L82: 0.21 | M82: DS
A83: 2418454 | B83: 320 ARTEMIS BLVD | C83: Merritt Island | D83: Florida | E83: 32953 | F83: O'BRIEN, RICHARD H | G83: 207710 | H83: 178120 | I83: 178070 | K83: 1666 | L83: 0.2 | M83: DS
A84: 2418453 | B84: 330 ARTEMIS BLVD | C84: Merritt Island | D84: Florida | E84: 32953 | F84: LEVY, MICHAEL B | G84: 201710 | H84: 176030 | I84: 177370 | J84: 1973 | K84: 1782 | L84: 0.2 | M84: DS
A85: 2418452 | B85: 340 ARTEMIS BLVD | C85: Merritt Island | D85: Florida | E85: 32953 | F85: KAPITAN, GARY A | G85: 205390 | H85: 182100 | I85: 183090 | J85: 1973 | K85: 1759 | L85: 0.2 | M85: DS
A86: 2418320 | B86: 35 ARTEMIS BLVD | C86: Merritt Island | D86: Florida | E86: 32953 | F86: LANG, JAMES T | G86: 185240 | H86: 160530 | I86: 164710 | K86: 1688 | L86: 0.2 | M86: DS
A87: 2418451 | B87: 350 ARTEMIS BLVD | C87: Merritt Island | D87: Florida | E87: 32953 | F87: YOUNG, STEPHEN | G87: 184670 | H87: 163160 | I87: 166170 | J87: 1974 | K87: 2010 | L87: 0.2 | M87: DS
A88: 2418482 | B88: 355 ARTEMIS BLVD | C88: Merritt Island | D88: Florida | E88: 32953 | F88: GLEASON, PATRICK G | G88: 169970 | H88: 148510 | I88: 149520 | J88: 1978 | K88: 1853 | L88: 0.2 | M88: DS
A89: 2418450 | B89: 360 ARTEMIS BLVD | C89: Merritt Island | D89: Florida | E89: 32953 | F89: FIDALGO, DAVID | G89: 194630 | H89: 171690 | I89: 174270 | J89: 1974 | K89: 1686 | L89: 0.2 | M89: DS
A90: 2418449 | B90: 370 ARTEMIS BLVD | C90: Merritt Island | D90: Florida | E90: 32953 | F90: WHITEAKER, MELISSA A | G90: 224200 | H90: 187310 | I90: 188910 | K90: 1652 | L90: 0.2 | M90: DS
A91: 2417502 | B91: 375 ARTEMIS BLVD | C91: Merritt Island | D91: Florida | E91: 32953 | F91: MC FALL, FREDERICK | G91: 218660 | H91: 188920 | I91: 190630 | J91: 1977 | K91: 1736 | L91: 0.21 | M91: DS
A92: 2417501 | B92: 380 ARTEMIS BLVD | C92: Merritt Island | D92: Florida | E92: 32953 | F92: SOBOL, JUSTIN J | G92: 215440 | H92: 185900 | I92: 187760 | J92: 1977 | K92: 1776 | L92: 0.2 | M92: DS
A93: 2417500 | B93: 390 ARTEMIS BLVD | C93: Merritt Island | D93: Florida | E93: 32953 | F93: KEEGAN, THOMAS E | G93: 207020 | H93: 180500 | I93: 183020 | J93: 1976 | K93: 1733 | L93: 0.2 | M93: DS
A94: 2418532 | B94: 405 ARTEMIS BLVD | C94: Merritt Island | D94: Florida | E94: 32953 | F94: BORROR, DAVID L | G94: 202660 | H94: 180020 | I94: 176500 | J94: 1989 | K94: 2062 | L94: 0.21 | M94: DS
A95: 2418525 | B95: 410 ARTEMIS BLVD | C95: Merritt Island | D95: Florida | E95: 32953 | F95: HEALY, SHIRLEY S | G95: 201330 | H95: 170060 | I95: 173760 | J95: 1976 | K95: 1748 | L95: 0.2 | M95: DS
A96: 2418524 | B96: 420 ARTEMIS BLVD | C96: Merritt Island | D96: Florida | E96: 32953 | F96: WESSNER, ROBERT K | G96: 228820 | H96: 200320 | I96: 201470 | J96: 1975 | K96: 2150 | L96: 0.2 | M96: DS
A97: 2418533 | B97: 425 ARTEMIS BLVD | C97: Merritt Island | D97: Florida | E97: 32953 | F97: MAKOWSKI, KEVIN | G97: 242500 | H97: 201320 | I97: 202170 | J97: 1988 | K97: 1947 | L97: 0.24 | M97: DS
A98: 2418523 | B98: 430 ARTEMIS BLVD | C98: Merritt Island | D98: Florida | E98: 32953 | F98: RODERICK, JOAN TRUSTEE | G98: 217200 | H98: 190160 | I98: 192080 | K98: 1863 | L98: 0.21 | M98: DS
A99: 2418321 | B99: 45 ARTEMIS BLVD | C99: Merritt Island | D99: Florida | E99: 32953 | F99: ANGELILLO, STEPHEN J | G99: 200740 | H99: 174490 | I99: 176550 | K99: 1685 | L99: 0.2 | M99: DS
A100: 2418317 | B100: 5 ARTEMIS BLVD | C100: Merritt Island | D100: Florida | E100: 32953 | F100: LIETZOW, BARRY P | G100: 185440 | H100: 162100 | I100: 164890 | J100: 1968 | K100: 2003 | L100: 0.2 | M100: DS
A101: 2418323 | B101: 65 ARTEMIS BLVD | C101: Merritt Island | D101: Florida | E101: 32953 | F101: SMITH, MARION GLENN TRUSTEE | G101: 185190 | H101: 163590 | I101: 166120 | J101: 1974 | K101: 1510 | L101: 0.2 | M101: DS
A102: 2418371 | B102: 75 ARTEMIS BLVD | C102: Merritt Island | D102: Florida | E102: 32953 | F102: NARUS, ELLEN M | G102: 190170 | H102: 167440 | I102: 170230 | J102: 1973 | K102: 1674 | L102: 0.2 | M102: DS
A103: 2418372 | B103: 85 ARTEMIS BLVD | C103: Merritt Island | D103: Florida | E103: 32953 | F103: STRICKLAND, SCOTT | G103: 182780 | H103: 154610 | I103: 158530 | K103: 1674 | L103: 0.2 | M103: DS
A104: 2419044 | B104: 1005 AUDUBON RD | C104: Merritt Island | D104: Florida | E104: 32953 | F104: HASSELBRING, SCOTT | G104: 143270 | H104: 120150 | I104: 117120 | J104: 1978 | K104: 1319 | L104: 0.17 | M104: Hampton
A105: 2419045 | B105: 1015 AUDUBON RD | C105: Merritt Island | D105: Florida | E105: 32953 | F105: SMITH, KENNETH W | G105: 148580 | H105: 128300 | I105: 122090 | J105: 1978 | K105: 1130 | L105: 0.17 | M105: Hampton
A106: 2419046 | B106: 1025 AUDUBON RD | C106: Merritt Island | D106: Florida | E106: 32953 | F106: ULLMAN, CHARLES D JR | G106: 152990 | H106: 128440 | I106: 117870 | J106: 1978 | K106: 1082 | L106: 0.17 | M106: Hampton
A107: 2419047 | B107: 1035 AUDUBON RD | C107: Merritt Island | D107: Florida | E107: 32953 | F107: BENISH, MARY L | G107: 148050 | H107: 126730 | I107: 122610 | J107: 1978 | K107: 1512 | L107: 0.17 | M107: Hampton
A108: 2419048 | B108: 1045 AUDUBON RD | C108: Merritt Island | D108: Florida | E108: 32953 | F108: DUNWOODY, DAN W | G108: 141260 | H108: 119360 | I108: 116460 | J108: 1978 | K108: 1258 | L108: 0.17 | M108: Hampton
A109: 2419049 | B109: 1055 AUDUBON RD | C109: Merritt Island | D109: Florida | E109: 32953 | F109: OUELLETTE, MICHAEL J | G109: 163670 | H109: 143990 | I109: 140650 | K109: 1690 | L109: 0.17 | M109: Hampton
A110: 2419050 | B110: 1065 AUDUBON RD | C110: Merritt Island | D110: Florida | E110: 32953 | F110: HAGAN, ALLAN R JR | G110: 177500 | H110: 155740 | I110: 150700 | K110: 1576 | L110: 0.17 | M110: Hampton
A111: 2419051 | B111: 1075 AUDUBON RD | C111: Merritt Island | D111: Florida | E111: 32953 | F111: SMITH, PAMELA | G111: 172620 | H111: 152590 | I111: 148780 | J111: 1979 | K111: 1594 | L111: 0.17 | M111: Hampton
A112: 2419053 | B112: 1095 AUDUBON RD | C112: Merritt Island | D112: Florida | E112: 32953 | F112: ISRAEL, GIRGIS Z | G112: 148240 | H112: 138940 | I112: 136100 | J112: 1979 | K112: 1678 | L112: 0.17 | M112: Hampton
A113: 2419054 | B113: 1105 AUDUBON RD | C113: Merritt Island | D113: Florida | E113: 32953 | F113: BOOKMAN, DARRYL L | G113: 187480 | H113: 168050 | I113: 162910 | J113: 1982 | K113: 1900 | L113: 0.17 | M113: Hampton
A114: 2419055 | B114: 1115 AUDUBON RD | C114: Merritt Island | D114: Florida | E114: 32953 | F114: MAGUIRE, KEVIN C LIFE ESTATE | G114: 210120 | H114: 189240 | I114: 183930 | J114: 1983 | K114: 2544 | L114: 0.17 | M114: Hampton
A115: 2419056 | B115: 1125 AUDUBON RD | C115: Merritt Island | D115: Florida | E115: 32953 | F115: DEAN, JERRY S | G115: 180830 | H115: 160740 | I115: 156220 | J115: 1982 | K115: 1551 | L115: 0.17 | M115: Hampton
A116: 2419057 | B116: 1135 AUDUBON RD | C116: Merritt Island | D116: Florida | E116: 32953 | F116: SCHIESS, DAVE E CO-TRUSTEE | G116: 181320 | H116: 158520 | I116: 148110 | J116: 1982 | K116: 1579 | L116: 0.17 | M116: Hampton
A117: 2419058 | B117: 1145 AUDUBON RD | C117: Merritt Island | D117: Florida | E117: 32953 | F117: HUNTER, RANDY J | G117: 258510 | H117: 232870 | I117: 226820 | J117: 1983 | K117: 3150 | L117: 0.23 | M117: Hampton
A118: 2419060 | B118: 1155 AUDUBON RD | C118: Merritt Island | D118: Florida | E118: 32953 | F118: LEE, CHUAN CHI | G118: 249170 | H118: 222240 | I118: 214590 | J118: 1984 | K118: 2114 | L118: 0.23 | M118: Hampton
A119: 2419061 | B119: 1165 AUDUBON RD | C119: Merritt Island | D119: Florida | E119: 32953 | F119: KHORRAMI, MILAD | G119: 280230 | H119: 252420 | I119: 244890 | J119: 1984 | K119: 2542 | L119: 0.27 | M119: Hampton
A120: 2419064 | B120: 1195 AUDUBON RD | C120: Merritt Island | D120: Florida | E120: 32953 | F120: STEPHAN, TROY W | G120: 382020 | H120: 347620 | I120: 340060 | K120: 4450 | L120: 0.39 | M120: Hampton
A121: 2419039 | B121: 955 AUDUBON RD | C121: Merritt Island | D121: Florida | E121: 32953 | F121: GUIDO, RUBY M LIFE ESTATE | G121: 133850 | H121: 112660 | I121: 109930 | J121: 1976 | K121: 1096 | L121: 0.18 | M121: Hampton
A122: 2419040 | B122: 965 AUDUBON RD | C122: Merritt Island | D122: Florida | E122: 32953 | F122: HUGGETT, MARYLYNN O'ROURKE | G122: 148390 | H122: 127340 | I122: 121710 | J122: 1977 | K122: 1146 | L122: 0.17 | M122: Hampton
A123: 2419042 | B123: 985 AUDUBON RD | C123: Merritt Island | D123: Florida | E123: 32953 | F123: HEINE, MARK S | G123: 150950 | H123: 129450 | I123: 125200 | J123: 1977 | K123: 1294 | L123: 0.17 | M123: Hampton
A124: 2419043 | B124: 995 AUDUBON RD | C124: Merritt Island | D124: Florida | E124: 32953 | F124: FAULKNER, TIMOTHY D | G124: 153240 | H124: 130970 | I124: 126270 | J124: 1977 | K124: 1061 | L124: 0.17 | M124: Hampton
A125: 2418751 | B125: 415 BACARDI DR | C125: Merritt Island | D125: Florida | E125: 32953 | F125: CAVALARI, MARC | G125: 171330 | H125: 148090 | I125: 151860 | J125: 1968 | K125: 1372 | L125: 0.22 | M125: CI
A126: 2418753 | B126: 435 BACARDI DR | C126: Merritt Island | D126: Florida | E126: 32953 | F126: JONES, ROBERT C | G126: 180350 | H126: 156010 | I126: 152480 | J126: 1968 | K126: 1496 | L126: 0.22 | M126: CI
A127: 2418754 | B127: 445 BACARDI DR | C127: Merritt Island | D127: Florida | E127: 32953 | F127: HUGHES, JAMES R | G127: 210760 | H127: 178170 | I127: 175010 | J127: 1967 | K127: 1892 | L127: 0.22 | M127: CI
A128: 2418756 | B128: 465 BACARDI DR | C128: Merritt Island | D128: Florida | E128: 32953 | F128: DINKEL, R DOUGLAS | G128: 178810 | H128: 157640 | I128: 152980 | J128: 1968 | K128: 1188 | L128: 0.23 | M128: CI
A129: 2418757 | B129: 475 BACARDI DR | C129: Merritt Island | D129: Florida | E129: 32953 | F129: CUNNINGHAM, EUDELL LIFE ESTATE | G129: 286850 | H129: 227120 | I129: 222730 | J129: 1996 | K129: 2068 | L129: 0.38 | M129: CI
A130: 2440116 | B130: 303 BARRELLO LN | C130: COCOA BEACH | D130: Florida | E130: 32931 | F130: JOHN, DEBRA ANN | G130: 264770 | H130: 226000 | I130: 228430 | J130: 1962 | K130: 1898 | L130: 0.23 | M130: Venetian
A131: 2440080 | B131: 308 BARRELLO LN | C131: COCOA BEACH | D131: Florida | E131: 32931 | F131: PANZINI, THOMAS A | G131: 274270 | H131: 240100 | I131: 226130 | J131: 1961 | K131: 1824 | L131: 0.23 | M131: Venetian
A132: 2440115 | B132: 315 BARRELLO LN | C132: COCOA BEACH | D132: Florida | E132: 32931 | F132: COFFIN, BRODERICK JOHN | G132: 229180 | H132: 199110 | I132: 167310 | J132: 1962 | K132: 1332 | L132: 0.23 | M132: Venetian
A133: 2440081 | B133: 320 BARRELLO LN | C133: COCOA BEACH | D133: Florida | E133: 32931 | F133: ELFREY, JOHN V | G133: 254060 | H133: 222160 | I133: 215200 | J133: 1961 | K133: 1910 | L133: 0.23 | M133: Venetian
A134: 2440114 | B134: 327 BARRELLO LN | C134: COCOA BEACH | D134: Florida | E134: 32931 | F134: HAYES, PATRICIA M | G134: 225950 | H134: 190940 | I134: 187650 | J134: 1962 | K134: 1232 | L134: 0.23 | M134: Venetian
A135: 2440082 | B135: 332 BARRELLO LN | C135: COCOA BEACH | D135: Florida | E135: 32931 | F135: DICKSON, STEPHEN M | G135: 282780 | H135: 253350 | I135: 243120 | J135: 1961 | K135: 1621 | L135: 0.23 | M135: Venetian
A136: 2440113 | B136: 339 BARRELLO LN | C136: COCOA BEACH | D136: Florida | E136: 32931 | F136: COLVARD, ROBERT | G136: 258940 | H136: 223820 | I136: 208790 | J136: 1962 | K136: 2414 | L136: 0.23 | M136: Venetian
A137: 2440083 | B137: 344 BARRELLO LN | C137: COCOA BEACH | D137: Florida | E137: 32931 | F137: JENICEK, KENNETH A | G137: 245740 | H137: 209930 | I137: 205360 | J137: 1962 | K137: 1196 | L137: 0.23 | M137: Venetian
A138: 2440112 | B138: 351 BARRELLO LN | C138: COCOA BEACH | D138: Florida | E138: 32931 | F138: WHITING, MURIEL J | G138: 238750 | H138: 205780 | I138: 199710 | J138: 1962 | K138: 1449 | L138: 0.23 | M138: Venetian
A139: 2440084 | B139: 356 BARRELLO LN | C139: COCOA BEACH | D139: Florida | E139: 32931 | F139: FLANIGAN, STEWART B | G139: 222290 | H139: 200520 | I139: 215830 | J139: 1961 | K139: 1488 | L139: 0.23 | M139: Venetian
A140: 2440111 | B140: 363 BARRELLO LN | C140: COCOA BEACH | D140: Florida | E140: 32931 | F140: MURPHY, KELLEN | G140: 261170 | H140: 224210 | I140: 218530 | J140: 1962 | K140: 1676 | L140: 0.23 | M140: Venetian
A141: 2440085 | B141: 368 BARRELLO LN | C141: COCOA BEACH | D141: Florida | E141: 32931 | F141: ELSAMALOTY, TAMER M | G141: 262670 | H141: 265920 | I141: 246900 | J141: 1961 | K141: 2158 | L141: 0.23 | M141: Venetian
A142: 2440110 | B142: 375 BARRELLO LN | C142: COCOA BEACH | D142: Florida | E142: 32931 | F142: BLAKE, MICHAEL R | G142: 251710 | H142: 211720 | I142: 206340 | J142: 1962 | K142: 1440 | L142: 0.23 | M142: Venetian
A143: 2440086 | B143: 380 BARRELLO LN | C143: COCOA BEACH | D143: Florida | E143: 32931 | F143: GROCCIA, ALBERT | G143: 239330 | H143: 206980 | I143: 200820 | J143: 1961 | K143: 1552 | L143: 0.23 | M143: Venetian
A144: 2440109 | B144: 387 BARRELLO LN | C144: COCOA BEACH | D144: Florida | E144: 32931 | F144: STROMER, VANESSA K | G144: 247340 | H144: 214790 | I144: 202870 | J144: 1961 | K144: 1653 | L144: 0.23 | M144: Venetian
A145: 2440087 | B145: 392 BARRELLO LN | C145: COCOA BEACH | D145: Florida | E145: 32931 | F145: LINK, GENEVIEVE R LIFE ESTATE | G145: 235610 | H145: 199090 | I145: 195570 | J145: 1962 | K145: 1175 | L145: 0.23 | M145: Venetian
A146: 2440107 | B146: 411 BARRELLO LN | C146: COCOA BEACH | D146: Florida | E146: 32931 | F146: FINNEY, ROBERT S | G146: 225190 | H146: 192320 | I146: 187540 | J146: 1961 | K146: 1388 | L146: 0.23 | M146: Venetian
A147: 2440089 | B147: 418 BARRELLO LN | C147: COCOA BEACH | D147: Florida | E147: 32931 | F147: KRAMER, COREY M | G147: 231540 | H147: 199120 | I147: 194730 | J147: 1961 | K147: 1146 | L147: 0.23 | M147: Venetian
A148: 2440106 | B148: 423 BARRELLO LN | C148: COCOA BEACH | D148: Florida | E148: 32931 | F148: PAGET, ELIZABETH C | G148: 223060 | H148: 190650 | I148: 187310 | J148: 1961 | K148: 1260 | L148: 0.23 | M148: Venetian
A149: 2440090 | B149: 430 BARRELLO LN | C149: COCOA BEACH | D149: Florida | E149: 32931 | F149: JOHNSON, MADELINE H | G149: 232530 | H149: 198220 | I149: 188670 | J149: 1961 | K149: 1448 | L149: 0.23 | M149: Venetian
A150: 2440105 | B150: 435 BARRELLO LN | C150: COCOA BEACH | D150: Florida | E150: 32931 | F150: FLICKINGER, STEPHEN W | G150: 274170 | H150: 241330 | I150: 231050 | J150: 1961 | K150: 2054 | L150: 0.23 | M150: Venetian
A151: 2440091 | B151: 442 BARRELLO LN | C151: COCOA BEACH | D151: Florida | E151: 32931 | F151: PARNELL, TERRY | G151: 233570 | H151: 196050 | I151: 190210 | J151: 1961 | K151: 1363 | L151: 0.23 | M151: Venetian
A152: 2440104 | B152: 447 BARRELLO LN | C152: COCOA BEACH | D152: Florida | E152: 32931 | F152: HUDSON, ELWOOD E | G152: 254860 | H152: 220300 | I152: 205960 | J152: 1961 | K152: 2706 | L152: 0.31 | M152: Venetian
A153: 2440092 | B153: 456 BARRELLO LN | C153: COCOA BEACH | D153: Florida | E153: 32931 | F153: TOQUINTO, JAMES J | G153: 244740 | H153: 206170 | I153: 200380 | J153: 1962 | K153: 1336 | L153: 0.23 | M153: Venetian
A154: 2440103 | B154: 459 BARRELLO LN | C154: COCOA BEACH | D154: Florida | E154: 32931 | F154: ELLIS, JOHN A | G154: 255720 | H154: 218200 | I154: 205740 | K154: 1575 | L154: 0.31 | M154: Venetian
A155: 2440093 | B155: 468 BARRELLO LN | C155: COCOA BEACH | D155: Florida | E155: 32931 | F155: RAPOVICH, ELOIS | G155: 239530 | H155: 205810 | I155: 194550 | J155: 1962 | K155: 1657 | L155: 0.23 | M155: Venetian
A156: 2440102 | B156: 471 BARRELLO LN | C156: COCOA BEACH | D156: Florida | E156: 32931 | F156: SIMSER, GLEN D | G156: 329910 | H156: 296070 | I156: 287180 | J156: 1961 | K156: 4076 | L156: 0.31 | M156: Venetian
A157: 2440094 | B157: 480 BARRELLO LN | C157: COCOA BEACH | D157: Florida | E157: 32931 | F157: HERNDON, JEFFERY S | G157: 249650 | H157: 209460 | I157: 203560 | J157: 1962 | K157: 1416 | L157: 0.23 | M157: Venetian
A158: 2440101 | B158: 483 BARRELLO LN | C158: COCOA BEACH | D158: Florida | E158: 32931 | F158: FLOM, MARKLEY | G158: 251690 | H158: 210940 | I158: 204310 | J158: 1961 | K158: 1319 | L158: 0.23 | M158: Venetian
A159: 2440095 | B159: 488 BARRELLO LN | C159: COCOA BEACH | D159: Florida | E159: 32931 | F159: HAWLEY, SCOTT M | G159: 231840 | H159: 198490 | I159: 189010 | K159: 1592 | L159: 0.23 | M159: Venetian
A160: 2440100 | B160: 495 BARRELLO LN | C160: COCOA BEACH | D160: Florida | E160: 32931 | F160: SAGORSKI, PETER | G160: 239630 | H160: 204860 | I160: 199960 | J160: 1962 | K160: 1632 | L160: 0.26 | M160: Venetian
A161: 2440097 | B161: 504 BARRELLO LN | C161: COCOA BEACH | D161: Florida | E161: 32931 | F161: O'DELL, MARLENE S TRUSTEE | G161: 278720 | H161: 242340 | I161: 237760 | J161: 1962 | K161: 2000 | L161: 0.26 | M161: Venetian
A162: 2440098 | B162: 516 BARRELLO LN | C162: COCOA BEACH | D162: Florida | E162: 32931 | F162: KEENAN, VINCENT E | G162: 309030 | H162: 277020 | I162: 276890 | J162: 1962 | K162: 2614 | L162: 0.41 | M162: Venetian
A163: 2431810 | B163: 1630 BAYSIDE ST | C163: Merritt Island | D163: Florida | E163: 32952 | F163: MACINTYRE, WILLIAM RALPH III | G163: 194370 | H163: 172750 | I163: 176850 | J163: 1958 | L163: 0.24 | M163: Can
A164: 2431791 | B164: 1645 BAYSIDE ST | C164: Merritt Island | D164: Florida | E164: 32952 | F164: OSSIAN, MARTIN F TRUSTEE | G164: 202440 | H164: 177900 | I164: 182920 | J164: 1958 | L164: 0.23 | M164: Can
A165: 2431811 | B165: 1646 BAYSIDE ST | C165: Merritt Island | D165: Florida | E165: 32952 | F165: FERGUSON, WILLIAM S | G165: 196380 | H165: 172170 | I165: 213170 | J165: 1958 | L165: 0.23 | M165: Can
A166: 2431794 | B166: 1671 BAYSIDE ST | C166: Merritt Island | D166: Florida | E166: 32952 | F166: PALERMO, JOSEPH J | G166: 224540 | H166: 203070 | I166: 312280 | J166: 2008 | L166: 0.34 | M166: Can
A167: 2431815 | B167: 1672 BAYSIDE ST | C167: Merritt Island | D167: Florida | E167: 32952 | F167: ALDRIDGE, VIRGINIA LEE ESTATE | G167: 204260 | H167: 180650 | I167: 188090 | J167: 1958 | L167: 0.34 | M167: Can
A168: 2431818 | B168: 1688 BAYSIDE ST | C168: Merritt Island | D168: Florida | E168: 32952 | F168: MOORE, JANETTE M | G168: 194940 | H168: 168960 | I168: 173800 | L168: 0.23 | M168: Can
A169: 2431798 | B169: 1707 BAYSIDE ST | C169: Merritt Island | D169: Florida | E169: 32952 | F169: JOHNSTON, WILLIAM D | G169: 181220 | H169: 160100 | I169: 164660 | J169: 1957 | L169: 0.23 | M169: Can
A170: 2431819 | B170: 1708 BAYSIDE ST | C170: Merritt Island | D170: Florida | E170: 32952 | F170: MENDOZA, ANNA M | G170: 186430 | H170: 165550 | I170: 169520 | J170: 1958 | L170: 0.23 | M170: Can
A171: 2431799 | B171: 1723 BAYSIDE ST | C171: Merritt Island | D171: Florida | E171: 32952 | F171: DIXON, KATHLEEN A | G171: 188390 | H171: 167370 | I171: 172610 | J171: 1957 | L171: 0.23 | M171: Can
A172: 2431823 | B172: 1724 BAYSIDE ST | C172: Merritt Island | D172: Florida | E172: 32952 | F172: BRUDER, MICHAEL D | G172: 269750 | H172: 240310 | I172: 247890 | J172: 1958 | L172: 0.23 | M172: Can
A173: 2431802 | B173: 1739 BAYSIDE ST | C173: Merritt Island | D173: Florida | E173: 32952 | F173: CHANDLER, WILLIAM H | G173: 191340 | H173: 167260 | I173: 171490 | J173: 1957 | L173: 0.23 | M173: Can
A174: 2431824 | B174: 1740 BAYSIDE ST | C174: Merritt Island | D174: Florida | E174: 32952 | F174: BYRD, RAYMOND J LIFE ESTATE | G174: 175350 | H174: 150500 | I174: 156130 | J174: 1958 | L174: 0.23 | M174: Can
A175: 2431803 | B175: 1755 BAYSIDE ST | C175: Merritt Island | D175: Florida | E175: 32952 | F175: TAMPA, ROBERT | G175: 209710 | H175: 187190 | I175: 189880 | J175: 1957 | L175: 0.23 | M175: Can
A176: 2431827 | B176: 1756 BAYSIDE ST | C176: Merritt Island | D176: Florida | E176: 32952 | F176: PERFECT, CATHERINE | G176: 192940 | H176: 172240 | I176: 174980 | J176: 1958 | L176: 0.23 | M176: Can
A177: 2431806 | B177: 1765 BAYSIDE ST | C177: Merritt Island | D177: Florida | E177: 32952 | F177: MC DEVITT, MICHAEL | G177: 356730 | H177: 324590 | I177: 323360 | J177: 1972 | L177: 0.34 | M177: Can
A178: 2431828 | B178: 1772 BAYSIDE ST | C178: Merritt Island | D178: Florida | E178: 32952 | F178: CHEN, THOMAS | G178: 328480 | H178: 297610 | I178: 299130 | J178: 1991 | L178: 0.3 | M178: Can
A179: 2432216 | B179: 1480 BELLA CASA CT | C179: Merritt Island | D179: Florida | E179: 32952 | F179: BARTHOLOMEUS, KELLY | G179: 184170 | H179: 158270 | I179: 155890 | J179: 1969 | K179: 1398 | L179: 0.27 | M179: SE
A180: 2432215 | B180: 1485 BELLA CASA CT | C180: Merritt Island | D180: Florida | E180: 32952 | F180: MC KEE, ROBERT R | G180: 194370 | H180: 166460 | I180: 164010 | J180: 1978 | K180: 1554 | L180: 0.26 | M180: SE
A181: 2432217 | B181: 1490 BELLA CASA CT | C181: Merritt Island | D181: Florida | E181: 32952 | F181: DE MARK, TERESA A | G181: 282580 | H181: 238420 | I181: 233720 | J181: 1982 | K181: 2760 | L181: 0.26 | M181: SE
A182: 2432218 | B182: 1500 BELLA CASA CT | C182: Merritt Island | D182: Florida | E182: 32952 | F182: ETTESTAD, BRAD T | G182: 233260 | H182: 206270 | I182: 200830 | J182: 1988 | K182: 2137 | L182: 0.19 | M182: SE
A183: 2432213 | B183: 1505 BELLA CASA CT | C183: Merritt Island | D183: Florida | E183: 32952 | F183: NAGEL, WILLIAM J | G183: 178830 | H183: 154500 | I183: 174570 | J183: 1977 | K183: 1657 | L183: 0.19 | M183: SE
A184: 2432219 | B184: 1510 BELLA CASA CT | C184: Merritt Island | D184: Florida | E184: 32952 | F184: OWENS, WILLIAM W | G184: 215740 | H184: 192280 | I184: 179360 | K184: 2044 | L184: 0.19 | M184: SE
A185: 2432212 | B185: 1515 BELLA CASA CT | C185: Merritt Island | D185: Florida | E185: 32952 | F185: STURM, ROBERT H | G185: 180700 | H185: 155620 | I185: 153610 | J185: 1969 | K185: 1800 | L185: 0.19 | M185: SE
A186: 2432211 | B186: 1525 BELLA CASA CT | C186: Merritt Island | D186: Florida | E186: 32952 | F186: PIERSON, PHYLLIS M TRUST | G186: 177460 | H186: 152010 | I186: 150000 | J186: 1969 | K186: 1532 | L186: 0.19 | M186: SE
A187: 2432221 | B187: 1530 BELLA CASA CT | C187: Merritt Island | D187: Florida | E187: 32952 | F187: ENGELHARDT, RICHARD | G187: 198450 | H187: 176940 | I187: 173580 | J187: 1972 | K187: 1702 | L187: 0.19 | M187: SE
A188: 2432210 | B188: 1535 BELLA CASA CT | C188: Merritt Island | D188: Florida | E188: 32952 | F188: HERRING, HAROLD C | G188: 190160 | H188: 164650 | I188: 161610 | J188: 1969 | K188: 1760 | L188: 0.18 | M188: SE
A189: 2432222 | B189: 1540 BELLA CASA CT | C189: Merritt Island | D189: Florida | E189: 32952 | F189: TRENT, CAROL J | G189: 196940 | H189: 174160 | I189: 169470 | J189: 1972 | K189: 1683 | L189: 0.18 | M189: SE
A190: 2432209 | B190: 1545 BELLA CASA CT | C190: Merritt Island | D190: Florida | E190: 32952 | F190: MC DONALD, JOHN L | G190: 159060 | H190: 137280 | I190: 135670 | J190: 1969 | K190: 1716 | L190: 0.19 | M190: SE
A191: 2432223 | B191: 1550 BELLA CASA CT | C191: Merritt Island | D191: Florida | E191: 32952 | F191: RFT TRUST | G191: 184110 | H191: 162560 | I191: 160020 | J191: 1972 | K191: 1809 | L191: 0.19 | M191: SE
A192: 2432208 | B192: 1555 BELLA CASA CT | C192: Merritt Island | D192: Florida | E192: 32952 | F192: BEUTH, JOHN P | G192: 198840 | H192: 171210 | I192: 191110 | J192: 1969 | K192: 1747 | L192: 0.19 | M192: SE
A193: 2432224 | B193: 1560 BELLA CASA CT | C193: Merritt Island | D193: Florida | E193: 32952 | F193: TERAN, CARLOS G | G193: 187510 | H193: 165960 | I193: 162610 | J193: 1973 | K193: 1812 | L193: 0.19 | M193: SE
A194: 2432207 | B194: 1565 BELLA CASA CT | C194: Merritt Island | D194: Florida | E194: 32952 | F194: CASEY, ANDREW J | G194: 216270 | H194: 187820 | I194: 182420 | J194: 1969 | K194: 1792 | L194: 0.19 | M194: SE
A195: 2432225 | B195: 1570 BELLA CASA CT | C195: Merritt Island | D195: Florida | E195: 32952 | F195: SJ3 FLORIDA ONE LLC | G195: 205120 | H195: 183610 | I195: 178400 | J195: 1974 | K195: 1812 | L195: 0.19 | M195: SE
A196: 2432206 | B196: 1575 BELLA CASA CT | C196: Merritt Island | D196: Florida | E196: 32952 | F196: DEVENS, DAVID C | G196: 171620 | H196: 151920 | I196: 147370 | J196: 1969 | K196: 1716 | L196: 0.18 | M196: SE
A197: 2432226 | B197: 1580 BELLA CASA CT | C197: Merritt Island | D197: Florida | E197: 32952 | F197: PRATER, JEFFREY A | G197: 191200 | H197: 164230 | I197: 160300 | K197: 1785 | L197: 0.18 | M197: SE
A198: 2432043 | B198: 1515 BREAM ST | C198: Merritt Island | D198: Florida | E198: 32952 | F198: ULLMANN, MYRTLE ANN | G198: 163190 | H198: 139320 | I198: 136810 | K198: 1693 | L198: 0.18 | M198: SE
A199: 2432059 | B199: 1520 BREAM ST | C199: Merritt Island | D199: Florida | E199: 32952 | F199: FOSCOLO, THEODORE | G199: 177630 | H199: 153600 | I199: 151800 | K199: 1553 | L199: 0.18 | M199: SE
A200: 2432044 | B200: 1525 BREAM ST | C200: Merritt Island | D200: Florida | E200: 32952 | F200: RAUSTAD, RANDY | G200: 169830 | H200: 147310 | I200: 145700 | K200: 1617 | L200: 0.18 | M200: SE
... 2239 more rows

Sheet Sales
A1: Parcel | B1: Base Area | C1: Date | D1: Amt | E1: Type | F1: Year | G1: $ Per Sq Ft | H1: Allotment | I1: Keep
A2: 2611784 | B2: 4430 | C2: 1960-09-22 | D2: 9000 | E2: WD | F2: =YEAR(C2) -> 1960 | G2: =D2/B2 -> 2.031602709 | H2: LAS | I2: TRUE
A3: 2437448 | B3: 1516 | C3: 1961-10-25 | D3: 19500 | E3: WD | F3: 1961 | G3: 12.86279683 | H3: SoBan | I3: TRUE
A4: 2431759 | B4: 1079 | C4: 1961-11-08 | D4: 18700 | E4: WD | F4: 1961 | G4: 17.33086191 | H4: Can | I4: TRUE
A5: 2418846 | B5: 1008 | C5: 1961-11-21 | D5: 18500 | E5: WD | F5: 1961 | G5: 18.3531746 | H5: Hampton | I5: TRUE
A6: 2437458 | B6: 1496 | C6: 1962-08-09 | D6: 24000 | E6: WD | F6: 1962 | G6: 16.04278075 | H6: SoBan | I6: TRUE
A7: 2431775 | B7: 1812 | C7: 1962-09-10 | D7: 15300 | E7: WD | F7: 1962 | G7: 8.443708609 | H7: Can | I7: TRUE
A8: 2418839 | B8: 1369 | C8: 1962-09-27 | D8: 21000 | E8: WD | F8: 1962 | G8: 15.33966399 | H8: Hampton | I8: TRUE
A9: 2431801 | C9: 1963-02-09 | D9: 16300 | E9: WD | F9: 1963 | H9: Can | I9: TRUE
A10: 2418985 | B10: 1712 | C10: 1963-04-28 | D10: 22400 | E10: WD | F10: 1963 | G10: 13.08411215 | H10: Hampton | I10: TRUE
A11: 2440087 | B11: 1552 | C11: 1963-05-04 | D11: 19300 | E11: WD | F11: 1963 | G11: 12.43556701 | H11: Venetian | I11: TRUE
A12: 2432478 | B12: 1296 | C12: 1963-05-16 | D12: 17800 | E12: WD | F12: 1963 | G12: 13.7345679 | H12: SE | I12: TRUE
A13: 2432474 | B13: 1550 | C13: 1963-05-23 | D13: 18300 | E13: WD | F13: 1963 | G13: 11.80645161 | H13: SE | I13: TRUE
A14: 2431776 | B14: 1664 | C14: 1963-05-31 | D14: 14900 | E14: WD | F14: =YEAR(C14) -> 1963 | G14: =D14/B14 -> 8.954326923 | H14: Can | I14: TRUE
A15: 2437999 | B15: 1132 | C15: 1963-07-11 | D15: 18500 | E15: WD | F15: =YEAR(C15) -> 1963 | G15: =D15/B15 -> 16.34275618 | H15: SoSykes | I15: TRUE
A16: 2432485 | B16: 1296 | C16: 1963-08-01 | D16: 19900 | E16: WD | F16: 1963 | G16: 15.35493827 | H16: SE | I16: TRUE
A17: 2432464 | B17: 1631.1 | C17: 1963-08-13 | D17: 17200 | E17: WD | F17: 1963 | G17: 10.54503096 | H17: SE | I17: TRUE
A18: 2437491 | B18: 2184 | C18: 1963-09-03 | D18: 21700 | E18: WD | F18: =YEAR(C18) -> 1963 | G18: =D18/B18 -> 9.935897436 | H18: SoBan | I18: TRUE
A19: 2437489 | B19: 2301 | C19: 1963-09-07 | D19: 19000 | E19: WD | F19: =YEAR(C19) -> 1963 | G19: =D19/B19 -> 8.257279444 | H19: SoBan | I19: TRUE
A20: 2437466 | B20: 1680 | C20: 1963-10-01 | D20: 22500 | F20: =YEAR(C20) -> 1963 | G20: =D20/B20 -> 13.39285714 | H20: SoBan | I20: TRUE
A21: 2419596 | B21: 1188 | C21: 1963-10-10 | D21: 19500 | E21: WD | F21: 1963 | G21: 16.41414141 | H21: CI | I21: TRUE
A22: 2437996 | B22: 1518 | C22: 1963-11-22 | D22: 18500 | E22: WD | F22: =YEAR(C22) -> 1963 | G22: =D22/B22 -> 12.18708827 | H22: SoSykes | I22: TRUE
A23: 2438147 | B23: 1304 | C23: 1963-11-26 | D23: 22400 | E23: WD | F23: 1963 | G23: 17.17791411 | H23: SoSykes | I23: TRUE
A24: 2438182 | B24: 2362 | C24: 1963-12-04 | D24: 19600 | E24: WD | F24: 1963 | G24: 8.298052498 | H24: SoSykes | I24: TRUE
A25: 2432631 | B25: 1612 | C25: 1963-12-17 | D25: 24200 | E25: WD | F25: 1963 | G25: 15.01240695 | H25: Can | I25: TRUE
A26: 2437504 | B26: 1802 | C26: 1963-12-19 | D26: 24000 | E26: WD | F26: 1963 | G26: 13.31853496 | H26: SoBan | I26: TRUE
A27: 2432647 | B27: 3671 | C27: 1964-01-02 | D27: 6800 | F27: 1964 | G27: 1.852356306 | H27: Can | I27: TRUE
A28: 2419602 | B28: 1609 | C28: 1964-01-08 | D28: 18200 | E28: WD | F28: 1964 | G28: 11.31137352 | H28: CI | I28: TRUE
A29: 2438102 | C29: 1964-01-10 | D29: 19100 | E29: WD | F29: =YEAR(C29) -> 1964 | G29: =D29/B29 ->  | H29: SoSykes | I29: TRUE
A30: 2418992 | B30: 1824 | C30: 1964-01-13 | D30: 26000 | E30: WD | F30: =YEAR(C30) -> 1964 | G30: =D30/B30 -> 14.25438596 | H30: Hampton | I30: TRUE
A31: 2437511 | B31: 1560 | C31: 1964-02-01 | D31: 24800 | F31: =YEAR(C31) -> 1964 | G31: =D31/B31 -> 15.8974359 | H31: SoBan | I31: TRUE
A32: 2419599 | B32: 1556 | C32: 1964-02-27 | D32: 21000 | E32: WD | F32: 1964 | G32: 13.49614396 | H32: CI | I32: TRUE
A33: 2432649 | B33: 1788 | C33: 1964-02-28 | D33: 5800 | E33: WD | F33: =YEAR(C33) -> 1964 | G33: =D33/B33 -> 3.243847875 | H33: Can | I33: TRUE
A34: 2440097 | B34: 1872 | C34: 1964-03-04 | D34: 28000 | E34: WD | F34: =YEAR(C34) -> 1964 | G34: =D34/B34 -> 14.95726496 | H34: Venetian | I34: TRUE
A35: 2440084 | B35: 1196 | C35: 1964-03-06 | D35: 16000 | E35: WD | F35: =YEAR(C35) -> 1964 | G35: =D35/B35 -> 13.37792642 | H35: Venetian | I35: TRUE
A36: 2419601 | B36: 1188 | C36: 1964-04-02 | D36: 20400 | E36: WD | F36: 1964 | G36: 17.17171717 | H36: CI | I36: TRUE
A37: 2432640 | B37: 2126 | C37: 1964-04-23 | D37: 23800 | E37: WD | F37: =YEAR(C37) -> 1964 | G37: =D37/B37 -> 11.19473189 | H37: Can | I37: TRUE
A38: 2418973 | B38: 1595 | C38: 1964-05-18 | D38: 27000 | E38: WD | F38: =YEAR(C38) -> 1964 | G38: =D38/B38 -> 16.92789969 | H38: Hampton | I38: TRUE
A39: 2432458 | B39: 1232 | C39: 1964-06-03 | D39: 16700 | E39: WD | F39: 1964 | G39: 13.55519481 | H39: SE | I39: TRUE
A40: 2437477 | B40: 1512 | C40: 1964-06-09 | D40: 24300 | E40: WD | F40: =YEAR(C40) -> 1964 | G40: =D40/B40 -> 16.07142857 | H40: SoBan | I40: TRUE
A41: 2419727 | B41: 1188 | C41: 1964-06-11 | D41: 24400 | E41: WD | F41: 1964 | G41: 20.53872054 | H41: CI | I41: TRUE
A42: 2432713 | B42: 1600 | C42: 1964-06-11 | D42: 23000 | E42: WD | F42: =YEAR(C42) -> 1964 | G42: =D42/B42 -> 14.375 | H42: PC | I42: TRUE
A43: 2440125 | B43: 1394 | C43: 1964-06-18 | D43: 17900 | E43: WD | F43: =YEAR(C43) -> 1964 | G43: =D43/B43 -> 12.84074605 | H43: Venetian | I43: TRUE
A44: 2437520 | B44: 1656 | C44: 1964-06-23 | D44: 24300 | E44: WD | F44: =YEAR(C44) -> 1964 | G44: =D44/B44 -> 14.67391304 | H44: SoBan | I44: TRUE
A45: 2432718 | B45: 1600 | C45: 1964-06-29 | D45: 21800 | E45: WD | F45: =YEAR(C45) -> 1964 | G45: =D45/B45 -> 13.625 | H45: PC | I45: TRUE
A46: 2419827 | B46: 1223 | C46: 1964-07-16 | D46: 18200 | E46: WD | F46: 1964 | G46: 14.88143908 | H46: CI | I46: TRUE
A47: 2432632 | B47: 1696 | C47: 1964-07-18 | D47: 27000 | E47: WD | F47: =YEAR(C47) -> 1964 | G47: =D47/B47 -> 15.91981132 | H47: Can | I47: TRUE
A48: 2437501 | B48: 1637 | C48: 1964-08-26 | D48: 21800 | E48: WD | F48: =YEAR(C48) -> 1964 | G48: =D48/B48 -> 13.31704337 | H48: SoBan | I48: TRUE
A49: 2419784 | B49: 1720 | C49: 1964-08-28 | D49: 18300 | E49: WD | F49: 1964 | G49: 10.63953488 | H49: CI | I49: TRUE
A50: 2419825 | B50: 1344 | C50: 1964-10-01 | D50: 24000 | F50: 1964 | G50: 17.85714286 | H50: CI | I50: TRUE
A51: 2419787 | B51: 2185 | C51: 1964-11-04 | D51: 21000 | E51: WD | F51: 1964 | G51: 9.610983982 | H51: CI | I51: TRUE
A52: 2432722 | B52: 1732 | C52: 1964-11-25 | D52: 20400 | E52: WD | F52: =YEAR(C52) -> 1964 | G52: =D52/B52 -> 11.77829099 | H52: PC | I52: TRUE
A53: 2519210 | B53: 5146 | C53: 1964-12-17 | D53: 35000 | E53: WD | F53: =YEAR(C53) -> 1964 | G53: =D53/B53 -> 6.801399145 | H53: NewF | I53: TRUE
A54: 2432472 | B54: 1492 | C54: 1964-12-24 | D54: 20000 | E54: WD | F54: 1964 | G54: 13.40482574 | H54: SE | I54: TRUE
A55: 2437484 | B55: 2280 | C55: 1965-01-12 | D55: 26100 | E55: WD | F55: =YEAR(C55) -> 1965 | G55: =D55/B55 -> 11.44736842 | H55: SoBan | I55: TRUE
A56: 2432723 | B56: 1710 | C56: 1965-01-26 | D56: 23000 | E56: WD | F56: =YEAR(C56) -> 1965 | G56: =D56/B56 -> 13.4502924 | H56: PC | I56: TRUE
A57: 2419747 | B57: 1188 | C57: 1965-01-28 | D57: 18500 | E57: WD | F57: 1965 | G57: 15.57239057 | H57: CI | I57: TRUE
A58: 2438186 | B58: 1276 | C58: 1965-02-04 | D58: 21600 | E58: WD | F58: =YEAR(C58) -> 1965 | G58: =D58/B58 -> 16.92789969 | H58: SoSykes | I58: TRUE
A59: 2437223 | B59: 1668 | C59: 1965-03-01 | D59: 6100 | E59: WD | F59: 1965 | G59: 3.657074341 | H59: Venetian | I59: TRUE
A60: 2437131 | B60: 2160 | C60: 1965-03-01 | D60: 7500 | E60: WD | F60: 1965 | G60: 3.472222222 | H60: Venetian | I60: TRUE
A61: 2437229 | B61: 1928 | C61: 1965-04-02 | D61: 7200 | E61: WD | F61: 1965 | G61: 3.734439834 | H61: Venetian | I61: TRUE
A62: 2432720 | B62: 1792 | C62: 1965-04-09 | D62: 24200 | E62: WD | F62: 1965 | G62: 13.50446429 | H62: PC | I62: TRUE
A63: 2515033 | B63: 1646 | C63: 1965-06-22 | D63: 20000 | E63: WD | F63: 1965 | G63: 12.15066829 | H63: NewF | I63: TRUE
A64: 2438074 | B64: 1053 | C64: 1965-06-23 | D64: 22200 | E64: WD | F64: 1965 | G64: 21.08262108 | H64: SoSykes | I64: TRUE
A65: 2419314 | B65: 1600 | C65: 1965-07-29 | D65: 17700 | E65: WD | F65: 1965 | G65: 11.0625 | H65: CI | I65: TRUE
A66: 2432484 | B66: 1510 | C66: 1965-08-07 | D66: 18700 | E66: WD | F66: 1965 | G66: 12.38410596 | H66: SE | I66: TRUE
A67: 2419804 | B67: 1391 | C67: 1965-08-12 | D67: 23500 | E67: WD | F67: 1965 | G67: 16.89432063 | H67: CI | I67: TRUE
A68: 2437526 | B68: 1512 | C68: 1965-08-25 | D68: 22600 | E68: WD | F68: =YEAR(C68) -> 1965 | G68: =D68/B68 -> 14.94708995 | H68: SoBan | I68: TRUE
A69: 2514674 | B69: 2516 | C69: 1965-09-13 | D69: 14000 | E69: WD | F69: =YEAR(C69) -> 1965 | G69: =D69/B69 -> 5.564387917 | H69: NewF | I69: TRUE
A70: 2419590 | B70: 1704 | C70: 1965-09-30 | D70: 16800 | E70: WD | F70: 1965 | G70: 9.85915493 | H70: CI | I70: TRUE
A71: 2417321 | B71: 1933 | C71: 1965-09-30 | D71: 19000 | E71: WD | F71: 1965 | G71: 9.829280911 | H71: CI | I71: TRUE
A72: 2437498 | B72: 1868 | C72: 1965-10-01 | D72: 19500 | E72: WD | F72: =YEAR(C72) -> 1965 | G72: =D72/B72 -> 10.43897216 | H72: SoBan | I72: TRUE
A73: 2432475 | B73: 1296 | C73: 1965-10-05 | D73: 20100 | E73: WD | F73: 1965 | G73: 15.50925926 | H73: SE | I73: TRUE
A74: 2437521 | B74: 1539 | C74: 1965-10-06 | D74: 22700 | E74: WD | F74: =YEAR(C74) -> 1965 | G74: =D74/B74 -> 14.74983756 | H74: SoBan | I74: TRUE
A75: 2440146 | B75: 1215 | C75: 1965-10-11 | D75: 16700 | E75: WD | F75: =YEAR(C75) -> 1965 | G75: =D75/B75 -> 13.74485597 | H75: Venetian | I75: TRUE
A76: 2437404 | B76: 1632 | C76: 1965-10-11 | D76: 19200 | E76: WD | F76: =YEAR(C76) -> 1965 | G76: =D76/B76 -> 11.76470588 | H76: MPD | I76: TRUE
A77: 2417332 | B77: 2415 | C77: 1965-10-14 | D77: 22000 | E77: WD | F77: 1965 | G77: 9.109730849 | H77: CI | I77: TRUE
A78: 2432101 | B78: 2176 | C78: 1965-10-20 | D78: 21000 | E78: WD | F78: 1965 | G78: 9.650735294 | H78: SE | I78: TRUE
A79: 2432066 | B79: 1612 | C79: 1965-10-29 | D79: 20300 | E79: WD | F79: 1965 | G79: 12.59305211 | H79: SE | I79: TRUE
A80: 2438078 | B80: 1486 | C80: 1965-11-08 | D80: 18800 | E80: WD | F80: =YEAR(C80) -> 1965 | G80: =D80/B80 -> 12.65141319 | H80: SoSykes | I80: TRUE
A81: 2437226 | B81: 2230 | C81: 1965-11-09 | D81: 7500 | E81: WD | F81: =YEAR(C81) -> 1965 | G81: =D81/B81 -> 3.3632287 | H81: Venetian | I81: TRUE
A82: 2431804 | B82: 2516 | C82: 1965-11-23 | D82: 13900 | E82: WD | F82: =YEAR(C82) -> 1965 | G82: =D82/B82 -> 5.524642289 | H82: Can | I82: TRUE
A83: 2417369 | B83: 1451 | C83: 1965-12-01 | D83: 18500 | F83: 1965 | G83: 12.74982771 | H83: CI | I83: TRUE
A84: 2419719 | B84: 1720 | C84: 1965-12-01 | D84: 20200 | F84: 1965 | G84: 11.74418605 | H84: CI | I84: TRUE
A85: 2417551 | B85: 1435 | C85: 1965-12-01 | D85: 21400 | F85: 1965 | G85: 14.91289199 | H85: DS | I85: TRUE
A86: 2419343 | B86: 1704 | C86: 1965-12-01 | D86: 22000 | F86: 1965 | G86: 12.91079812 | H86: CI | I86: TRUE
A87: 2432100 | B87: 1724 | C87: 1965-12-01 | D87: 19500 | F87: 1965 | G87: 11.31090487 | H87: SE | I87: TRUE
A88: 2437212 | B88: 1847 | C88: 1965-12-01 | D88: 6900 | F88: =YEAR(C88) -> 1965 | G88: =D88/B88 -> 3.735787764 | H88: Venetian | I88: TRUE
A89: 2437393 | B89: 1959 | C89: 1965-12-01 | D89: 11000 | F89: =YEAR(C89) -> 1965 | G89: =D89/B89 -> 5.61510975 | H89: MPD | I89: TRUE
A90: 2514572 | B90: 1350 | C90: 1965-12-07 | D90: 18400 | E90: WD | F90: =YEAR(C90) -> 1965 | G90: =D90/B90 -> 13.62962963 | H90: NewF | I90: TRUE
A91: 2417552 | B91: 1616 | C91: 1965-12-17 | D91: 23500 | E91: WD | F91: 1965 | G91: 14.54207921 | H91: DS | I91: TRUE
A92: 2417336 | B92: 1991 | C92: 1965-12-22 | D92: 21100 | E92: WD | F92: 1965 | G92: 10.5976896 | H92: CI | I92: TRUE
A93: 2417325 | B93: 1188 | C93: 1966-01-13 | D93: 21000 | E93: WD | F93: 1966 | G93: 17.67676768 | H93: CI | I93: TRUE
A94: 2419802 | B94: 1353 | C94: 1966-01-21 | D94: 18700 | E94: WD | F94: 1966 | G94: 13.82113821 | H94: CI | I94: TRUE
A95: 2417372 | B95: 2138 | C95: 1966-01-30 | D95: 22900 | E95: WD | F95: 1966 | G95: 10.71094481 | H95: CI | I95: TRUE
A96: 2417354 | B96: 1500 | C96: 1966-02-01 | D96: 22000 | F96: 1966 | G96: 14.66666667 | H96: CI | I96: TRUE
A97: 2417568 | B97: 1592 | C97: 1966-02-01 | D97: 23000 | F97: 1966 | G97: 14.44723618 | H97: DS | I97: TRUE
A98: 2432074 | B98: 1698 | C98: 1966-02-24 | D98: 22200 | E98: WD | F98: 1966 | G98: 13.07420495 | H98: SE | I98: TRUE
A99: 2418991 | B99: 1575 | C99: 1966-03-01 | D99: 5000 | F99: =YEAR(C99) -> 1966 | G99: =D99/B99 -> 3.174603175 | H99: Hampton | I99: TRUE
A100: 2432052 | B100: 1316 | C100: 1966-03-07 | D100: 22600 | E100: WD | F100: 1966 | G100: 17.17325228 | H100: SE | I100: TRUE
A101: 2417548 | B101: 2042 | C101: 1966-03-28 | D101: 22500 | E101: WD | F101: 1966 | G101: 11.01860921 | H101: DS | I101: TRUE
A102: 2419786 | B102: 1591 | C102: 1966-04-01 | D102: 17700 | F102: 1966 | G102: 11.12507857 | H102: CI | I102: TRUE
A103: 2417342 | B103: 1844 | C103: 1966-04-01 | D103: 24000 | F103: 1966 | G103: 13.01518438 | H103: CI | I103: TRUE
A104: 2417579 | B104: 2428 | C104: 1966-04-01 | D104: 24000 | F104: 1966 | G104: 9.884678748 | H104: DS | I104: TRUE
A105: 2437230 | B105: 1929 | C105: 1966-04-01 | D105: 31300 | F105: =YEAR(C105) -> 1966 | G105: =D105/B105 -> 16.22602385 | H105: Venetian | I105: TRUE
A106: 2440095 | B106: 1416 | C106: 1966-04-25 | D106: 26700 | E106: WD | F106: =YEAR(C106) -> 1966 | G106: =D106/B106 -> 18.8559322 | H106: Venetian | I106: TRUE
A107: 2438323 | B107: 1865 | C107: 1966-04-29 | D107: 21500 | E107: WD | F107: =YEAR(C107) -> 1966 | G107: =D107/B107 -> 11.52815013 | H107: SoSykes | I107: TRUE
A108: 2417353 | B108: 1600 | C108: 1966-05-01 | D108: 21700 | F108: 1966 | G108: 13.5625 | H108: CI | I108: TRUE
A109: 2417364 | B109: 1386 | C109: 1966-05-01 | D109: 21700 | F109: 1966 | G109: 15.65656566 | H109: CI | I109: TRUE
A110: 2417344 | C110: 1966-05-01 | D110: 22700 | F110: 1966 | H110: CI | I110: TRUE
A111: 2432490 | B111: 1200 | C111: 1966-05-01 | D111: 20000 | F111: 1966 | G111: 16.66666667 | H111: SE | I111: TRUE
A112: 2440094 | B112: 1657 | C112: 1966-05-01 | D112: 23200 | F112: =YEAR(C112) -> 1966 | G112: =D112/B112 -> 14.001207 | H112: Venetian | I112: TRUE
A113: 2418487 | B113: 1729 | C113: 1966-06-01 | D113: 16900 | E113: WD | F113: 1966 | G113: 9.77443609 | H113: CI | I113: TRUE
A114: 2438318 | B114: 1209 | C114: 1966-06-01 | D114: 20300 | F114: =YEAR(C114) -> 1966 | G114: =D114/B114 -> 16.79073615 | H114: SoSykes | I114: TRUE
A115: 2438322 | B115: 1611 | C115: 1966-06-01 | D115: 22400 | F115: =YEAR(C115) -> 1966 | G115: =D115/B115 -> 13.9044072 | H115: SoSykes | I115: TRUE
A116: 2519252 | B116: 2125 | C116: 1966-06-01 | D116: 24500 | F116: =YEAR(C116) -> 1966 | G116: =D116/B116 -> 11.52941176 | H116: NewF | I116: TRUE
A117: 2437490 | B117: 1708 | C117: 1966-06-01 | D117: 28800 | F117: =YEAR(C117) -> 1966 | G117: =D117/B117 -> 16.8618267 | H117: SoBan | I117: TRUE
A118: 2419798 | B118: 1482 | C118: 1966-06-23 | D118: 21400 | E118: WD | F118: 1966 | G118: 14.43994602 | H118: CI | I118: TRUE
A119: 2438261 | B119: 1650 | C119: 1966-06-23 | D119: 27300 | E119: WD | F119: =YEAR(C119) -> 1966 | G119: =D119/B119 -> 16.54545455 | H119: SoBan | I119: TRUE
A120: 2437120 | B120: 1920 | C120: 1966-06-27 | D120: 29300 | E120: WD | F120: =YEAR(C120) -> 1966 | G120: =D120/B120 -> 15.26041667 | H120: Venetian | I120: TRUE
A121: 2417583 | B121: 1640 | C121: 1966-07-01 | D121: 21400 | F121: 1966 | G121: 13.04878049 | H121: DS | I121: TRUE
A122: 2432097 | B122: 1818 | C122: 1966-07-01 | D122: 22800 | F122: 1966 | G122: 12.54125413 | H122: SE | I122: TRUE
A123: 2437493 | B123: 1956 | C123: 1966-07-01 | D123: 41000 | F123: =YEAR(C123) -> 1966 | G123: =D123/B123 -> 20.96114519 | H123: SoBan | I123: TRUE
A124: 2419730 | B124: 1188 | C124: 1966-08-01 | D124: 23000 | F124: 1966 | G124: 19.36026936 | H124: CI | I124: TRUE
A125: 2417362 | B125: 2185 | C125: 1966-08-01 | D125: 25400 | F125: 1966 | G125: 11.62471396 | H125: CI | I125: TRUE
A126: 2432086 | B126: 1330 | C126: 1966-08-01 | D126: 24300 | F126: 1966 | G126: 18.27067669 | H126: SE | I126: TRUE
A127: 2437139 | B127: 2227 | C127: 1966-08-01 | D127: 7000 | F127: =YEAR(C127) -> 1966 | G127: =D127/B127 -> 3.14324203 | H127: Venetian | I127: TRUE
A128: 2431756 | B128: 1352 | C128: 1966-08-01 | D128: 17100 | F128: =YEAR(C128) -> 1966 | G128: =D128/B128 -> 12.64792899 | H128: Can | I128: TRUE
A129: 2437119 | B129: 1710 | C129: 1966-08-01 | D129: 70000 | F129: =YEAR(C129) -> 1966 | G129: =D129/B129 -> 40.93567251 | H129: Venetian | I129: TRUE
A130: 2417565 | B130: 2454 | C130: 1966-08-15 | D130: 22800 | E130: WD | F130: 1966 | G130: 9.290953545 | H130: DS | I130: TRUE
A131: 2417591 | B131: 1616 | C131: 1966-09-01 | D131: 10000 | F131: 1966 | G131: 6.188118812 | H131: DS | I131: TRUE
A132: 2432634 | B132: 1630 | C132: 1966-09-01 | D132: 28600 | F132: =YEAR(C132) -> 1966 | G132: =D132/B132 -> 17.54601227 | H132: Can | I132: TRUE
A133: 2437849 | B133: 1036 | C133: 1966-09-01 | D133: 24500 | F133: =YEAR(C133) -> 1966 | G133: =D133/B133 -> 23.64864865 | H133: SoSykes | I133: TRUE
A134: 2438179 | B134: 1160 | C134: 1966-09-15 | D134: 22000 | E134: WD | F134: =YEAR(C134) -> 1966 | G134: =D134/B134 -> 18.96551724 | H134: SoSykes | I134: TRUE
A135: 2418657 | B135: 1848 | C135: 1966-09-22 | D135: 22800 | E135: WD | F135: 1966 | G135: 12.33766234 | H135: CI | I135: TRUE
A136: 2432093 | B136: 1568 | C136: 1966-09-28 | D136: 24200 | E136: WD | F136: 1966 | G136: 15.43367347 | H136: SE | I136: TRUE
A137: 2417350 | B137: 1704 | C137: 1966-10-01 | D137: 20800 | F137: 1966 | G137: 12.20657277 | H137: CI | I137: TRUE
A138: 2437224 | B138: 1478 | C138: 1966-10-01 | D138: 27200 | F138: =YEAR(C138) -> 1966 | G138: =D138/B138 -> 18.40324763 | H138: Venetian | I138: TRUE
A139: 2437140 | C139: 1966-10-01 | D139: 28500 | F139: =YEAR(C139) -> 1966 | G139: =D139/B139 ->  | H139: Venetian | I139: TRUE
A140: 2437471 | B140: 1400 | C140: 1966-10-01 | D140: 22400 | F140: =YEAR(C140) -> 1966 | G140: =D140/B140 -> 16 | H140: SoBan | I140: TRUE
A141: 2438100 | B141: 1521 | C141: 1966-10-01 | D141: 29000 | F141: =YEAR(C141) -> 1966 | G141: =D141/B141 -> 19.06640368 | H141: SoSykes | I141: TRUE
A142: 2438324 | B142: 1500 | C142: 1966-10-30 | D142: 24700 | E142: WD | F142: =YEAR(C142) -> 1966 | G142: =D142/B142 -> 16.46666667 | H142: SoSykes | I142: TRUE
A143: 2417616 | B143: 1462 | C143: 1966-11-01 | D143: 23500 | F143: 1966 | G143: 16.07387141 | H143: DS | I143: TRUE
A144: 2432103 | B144: 1636 | C144: 1966-11-01 | D144: 22300 | F144: 1966 | G144: 13.63080685 | H144: SE | I144: TRUE
A145: 2437036 | B145: 2057 | C145: 1966-11-01 | D145: 9500 | F145: =YEAR(C145) -> 1966 | G145: =D145/B145 -> 4.618376276 | H145: Venetian | I145: TRUE
A146: 2412722 | B146: 1796 | C146: 1966-11-01 | D146: 31800 | F146: =YEAR(C146) -> 1966 | G146: =D146/B146 -> 17.70601336 | H146: VDP | I146: TRUE
A147: 2438185 | B147: 1910 | C147: 1966-11-01 | D147: 21000 | F147: =YEAR(C147) -> 1966 | G147: =D147/B147 -> 10.9947644 | H147: SoSykes | I147: TRUE
A148: 2431798 | B148: 1456 | C148: 1966-12-01 | D148: 16000 | F148: =YEAR(C148) -> 1966 | G148: =D148/B148 -> 10.98901099 | H148: Can | I148: TRUE
A149: 2431542 | B149: 1599 | C149: 1966-12-01 | D149: 21500 | F149: =YEAR(C149) -> 1966 | G149: =D149/B149 -> 13.44590369 | H149: HC | I149: TRUE
A150: 2418721 | B150: 1848 | C150: 1966-12-08 | D150: 23000 | E150: WD | F150: 1966 | G150: 12.44588745 | H150: CI | I150: TRUE
A151: 2440103 | B151: 4076 | C151: 1966-12-09 | D151: 21000 | E151: WD | F151: =YEAR(C151) -> 1966 | G151: =D151/B151 -> 5.152109912 | H151: Venetian | I151: TRUE
A152: 2432083 | B152: 1490 | C152: 1966-12-16 | D152: 22500 | E152: WD | F152: 1966 | G152: 15.10067114 | H152: SE | I152: TRUE
A153: 2431533 | B153: 1926 | C153: 1966-12-16 | D153: 23000 | E153: WD | F153: =YEAR(C153) -> 1966 | G153: =D153/B153 -> 11.94184839 | H153: HC | I153: TRUE
A154: 2431870 | B154: 1830 | C154: 1966-12-22 | D154: 5000 | E154: WD | F154: =YEAR(C154) -> 1966 | G154: =D154/B154 -> 2.732240437 | H154: RI | I154: TRUE
A155: 2418668 | B155: 1515 | C155: 1967-01-02 | D155: 17700 | F155: 1967 | G155: 11.68316832 | H155: CI | I155: TRUE
A156: 2417620 | B156: 2079 | C156: 1967-02-01 | D156: 20800 | F156: 1967 | G156: 10.00481 | H156: DS | I156: TRUE
A157: 2417602 | B157: 2042 | C157: 1967-02-01 | D157: 21000 | F157: 1967 | G157: 10.28403526 | H157: DS | I157: TRUE
A158: 2418674 | B158: 1554 | C158: 1967-02-01 | D158: 22500 | F158: 1967 | G158: 14.47876448 | H158: CI | I158: TRUE
A159: 2417606 | B159: 1462 | C159: 1967-02-01 | D159: 28200 | F159: 1967 | G159: 19.28864569 | H159: DS | I159: TRUE
A160: 2432044 | B160: 1693 | C160: 1967-02-01 | D160: 24500 | F160: 1967 | G160: 14.47135263 | H160: SE | I160: TRUE
A161: 2437044 | B161: 2675 | C161: 1967-02-01 | D161: 7400 | F161: =YEAR(C161) -> 1967 | G161: =D161/B161 -> 2.76635514 | H161: Venetian | I161: TRUE
A162: 2432460 | B162: 1356 | C162: 1967-03-01 | D162: 17600 | F162: 1967 | G162: 12.97935103 | H162: SE | I162: TRUE
A163: 2519248 | B163: 2187 | C163: 1967-03-01 | D163: 58000 | F163: =YEAR(C163) -> 1967 | G163: =D163/B163 -> 26.52034751 | H163: NewF | I163: TRUE
A164: 2418695 | B164: 1587 | C164: 1967-03-16 | D164: 23000 | E164: WD | F164: 1967 | G164: 14.49275362 | H164: CI | I164: TRUE
A165: 2418670 | B165: 1815 | C165: 1967-03-28 | D165: 20700 | E165: WD | F165: 1967 | G165: 11.40495868 | H165: CI | I165: TRUE
A166: 2440101 | B166: 1632 | C166: 1967-04-01 | D166: 22500 | F166: =YEAR(C166) -> 1967 | G166: =D166/B166 -> 13.78676471 | H166: Venetian | I166: TRUE
A167: 2432072 | B167: 1640 | C167: 1967-05-01 | D167: 27500 | F167: 1967 | G167: 16.76829268 | H167: SE | I167: TRUE
A168: 2417430 | B168: 1952 | C168: 1967-05-11 | D168: 24000 | E168: WD | F168: 1967 | G168: 12.29508197 | H168: DS | I168: TRUE
A169: 2419722 | B169: 1716 | C169: 1967-06-01 | D169: 17600 | F169: 1967 | G169: 10.25641026 | H169: CI | I169: TRUE
A170: 2418726 | B170: 1487 | C170: 1967-06-01 | D170: 20900 | F170: 1967 | G170: 14.05514459 | H170: CI | I170: TRUE
A171: 2418492 | B171: 1702 | C171: 1967-06-01 | D171: 23400 | F171: 1967 | G171: 13.74853114 | H171: DS | I171: TRUE
A172: 2431565 | B172: 1599 | C172: 1967-06-01 | D172: 25600 | F172: =YEAR(C172) -> 1967 | G172: =D172/B172 -> 16.01000625 | H172: HC | I172: TRUE
A173: 2431862 | B173: 2761 | C173: 1967-06-01 | D173: 26800 | F173: =YEAR(C173) -> 1967 | G173: =D173/B173 -> 9.706628033 | H173: RI | I173: TRUE
A174: 2440098 | B174: 2000 | C174: 1967-06-01 | D174: 32500 | F174: =YEAR(C174) -> 1967 | G174: =D174/B174 -> 16.25 | H174: Venetian | I174: TRUE
A175: 2417578 | B175: 1778 | C175: 1967-07-01 | D175: 25000 | F175: 1967 | G175: 14.06074241 | H175: DS | I175: TRUE
A176: 2418493 | C176: 1967-07-01 | D176: 30000 | F176: 1967 | H176: DS | I176: TRUE
A177: 2432468 | B177: 1456 | C177: 1967-07-01 | D177: 21000 | F177: 1967 | G177: 14.42307692 | H177: SE | I177: TRUE
A178: 2432173 | B178: 1535 | C178: 1967-07-01 | D178: 29400 | F178: 1967 | G178: 19.15309446 | H178: SE | I178: TRUE
A179: 2417751 | B179: 1758 | C179: 1967-07-01 | D179: 25000 | F179: =YEAR(C179) -> 1967 | G179: =D179/B179 -> 14.22070535 | H179: LAS | I179: TRUE
A180: 2417752 | B180: 2016 | C180: 1967-07-01 | D180: 27700 | F180: =YEAR(C180) -> 1967 | G180: =D180/B180 -> 13.74007937 | H180: LAS | I180: TRUE
A181: 2419316 | B181: 1720 | C181: 1967-08-01 | D181: 22000 | F181: 1967 | G181: 12.79069767 | H181: CI | I181: TRUE
A182: 2432065 | B182: 1504 | C182: 1967-08-01 | D182: 23900 | F182: 1967 | G182: 15.89095745 | H182: SE | I182: TRUE
A183: 2412725 | B183: 1903 | C183: 1967-08-01 | D183: 28400 | F183: =YEAR(C183) -> 1967 | G183: =D183/B183 -> 14.92380452 | H183: VDP | I183: TRUE
A184: 2438320 | B184: 1372 | C184: 1967-08-01 | D184: 20000 | F184: =YEAR(C184) -> 1967 | G184: =D184/B184 -> 14.57725948 | H184: SoSykes | I184: TRUE
A185: 2437027 | B185: 1789 | C185: 1967-08-09 | D185: 28600 | E185: WD | F185: =YEAR(C185) -> 1967 | G185: =D185/B185 -> 15.98658468 | H185: Venetian | I185: TRUE
A186: 2432171 | B186: 1436 | C186: 1967-08-11 | D186: 28100 | E186: WD | F186: 1967 | G186: 19.56824513 | H186: SE | I186: TRUE
A187: 2440140 | B187: 1422 | C187: 1967-08-19 | D187: 17300 | E187: WD | F187: =YEAR(C187) -> 1967 | G187: =D187/B187 -> 12.16596343 | H187: Venetian | I187: TRUE
A188: 2417466 | B188: 1702 | C188: 1967-08-31 | D188: 27000 | E188: WD | F188: 1967 | G188: 15.86368978 | H188: DS | I188: TRUE
A189: 2418698 | B189: 2317 | C189: 1967-09-01 | D189: 20700 | F189: 1967 | G189: 8.933966336 | H189: CI | I189: TRUE
A190: 2417450 | B190: 1702 | C190: 1967-09-01 | D190: 23500 | F190: 1967 | G190: 13.80728555 | H190: DS | I190: TRUE
A191: 2417436 | B191: 1508 | C191: 1967-09-01 | D191: 26500 | F191: 1967 | G191: 17.5729443 | H191: DS | I191: TRUE
A192: 2432165 | B192: 1635 | C192: 1967-09-01 | D192: 25400 | F192: 1967 | G192: 15.5351682 | H192: SE | I192: TRUE
A193: 2438131 | B193: 1080 | C193: 1967-09-01 | D193: 22700 | F193: =YEAR(C193) -> 1967 | G193: =D193/B193 -> 21.01851852 | H193: SoSykes | I193: TRUE
A194: 2418734 | B194: 1400 | C194: 1967-10-01 | D194: 20900 | F194: 1967 | G194: 14.92857143 | H194: CI | I194: TRUE
A195: 2418697 | B195: 1188 | C195: 1967-10-01 | D195: 23000 | F195: 1967 | G195: 19.36026936 | H195: CI | I195: TRUE
A196: 2432166 | B196: 1644 | C196: 1967-10-01 | D196: 27300 | F196: 1967 | G196: 16.60583942 | H196: SE | I196: TRUE
A197: 2437123 | B197: 2006 | C197: 1967-10-01 | D197: 30500 | F197: =YEAR(C197) -> 1967 | G197: =D197/B197 -> 15.20438684 | H197: Venetian | I197: TRUE
A198: 2437238 | B198: 2213 | C198: 1967-10-01 | D198: 36000 | F198: =YEAR(C198) -> 1967 | G198: =D198/B198 -> 16.26751017 | H198: Venetian | I198: TRUE
A199: 2437476 | B199: 1528 | C199: 1967-10-01 | D199: 26500 | F199: =YEAR(C199) -> 1967 | G199: =D199/B199 -> 17.34293194 | H199: SoBan | I199: TRUE
A200: 2418687 | B200: 1708 | C200: 1967-11-01 | D200: 24000 | F200: 1967 | G200: 14.05152225 | H200: CI | I200: TRUE
... 6762 more rows
